[Event "Titled Tuesday Blitz January 03 Late 2023"]
[White "Cruz Mendez, Jean Marco"]
[Black "Horcajuelo Rocamora, Martin"]
[WhiteFideId "3526402"]
[BlackFideId "24573027"]
[WhiteElo "2270"]
[BlackElo "2107"]
[Result "1-0"]
[Round "05"]
[TimeControl "180+2"]
[Date "2023.01.03"]
[WhiteClock "0:01:22"]
[BlackClock "0:00:11"]

1. e4 {[%clk 0:03:00]}  e5 {[%clk 0:02:36]} 2. Nf3 {[%clk 0:03:00]}  Nc6 {[%clk 0:02:16]} 3. Bc4 {[%clk 0:03:00]}  Nf6 {[%clk 0:02:11]} 4. d3 {[%clk 0:02:57]}  d6 {[%clk 0:02:10]} 5. c3 {[%clk 0:02:57]}  Be7 {[%clk 0:02:09]} 6. h3 {[%clk 0:02:55]}  h6 {[%clk 0:02:08]} 7. Bb3 {[%clk 0:02:54]}  Be6 {[%clk 0:02:08]} 8. Bc2 {[%clk 0:02:54]}  Qd7 {[%clk 0:02:07]} 9. Nbd2 {[%clk 0:02:51]}  g5 {[%clk 0:02:01]} 10. Qe2 {[%clk 0:02:48]}  O-O-O {[%clk 0:01:56]} 11. b4 {[%clk 0:02:46]}  Nb8 {[%clk 0:01:50]} 12. Nb3 {[%clk 0:02:39]}  Bxb3 {[%clk 0:01:48]} 13. axb3 {[%clk 0:02:39]}  a6 {[%clk 0:01:45]} 14. c4 {[%clk 0:02:35]}  g4 {[%clk 0:01:42]} 15. hxg4 {[%clk 0:02:33]}  Qxg4 {[%clk 0:01:43]} 16. g3 {[%clk 0:02:22]}  Nc6 {[%clk 0:01:16]} 17. Bd2 {[%clk 0:02:22]}  Nd4 {[%clk 0:01:08]} 18. Nxd4 {[%clk 0:02:21]}  exd4 {[%clk 0:01:09]} 19. Qxg4+ {[%clk 0:02:19]}  Nxg4 {[%clk 0:01:10]} 20. Bd1 {[%clk 0:02:20]}  Ne5 {[%clk 0:01:09]} 21. Be2 {[%clk 0:02:21]}  Kd7 {[%clk 0:01:00]} 22. O-O-O {[%clk 0:02:15]}  c5 {[%clk 0:00:52]} 23. f4 {[%clk 0:02:12]}  Nc6 {[%clk 0:00:50]} 24. bxc5 {[%clk 0:02:11]}  dxc5 {[%clk 0:00:50]} 25. e5 {[%clk 0:02:11]}  Rdg8 {[%clk 0:00:43]} 26. g4 {[%clk 0:02:08]}  b5 {[%clk 0:00:41]} 27. Bf3 {[%clk 0:02:05]}  Nd8 {[%clk 0:00:20]} 28. Kc2 {[%clk 0:02:03]}  b4 {[%clk 0:00:18]} 29. Ra1 {[%clk 0:02:03]}  Rg6 {[%clk 0:00:19]} 30. f5 {[%clk 0:01:59]}  Rb6 {[%clk 0:00:19]} 31. Bf4 {[%clk 0:01:53]}  Kc8 {[%clk 0:00:13]} 32. Bd5 {[%clk 0:01:50]}  Rg8 {[%clk 0:00:12]} 33. Rag1 {[%clk 0:01:49]}  Bg5 {[%clk 0:00:12]} 34. Bxg5 {[%clk 0:01:46]}  hxg5 {[%clk 0:00:12]} 35. Rh7 {[%clk 0:01:44]}  Rf8 {[%clk 0:00:12]} 36. Rgh1 {[%clk 0:01:43]}  a5 {[%clk 0:00:12]} 37. Rh8 {[%clk 0:01:42]}  Rxh8 {[%clk 0:00:12]} 38. Rxh8 {[%clk 0:01:43]}  Kd7 {[%clk 0:00:12]} 39. Rg8 {[%clk 0:01:42]}  Ke7 {[%clk 0:00:12]} 40. Rxg5 {[%clk 0:01:37]}  Rh6 {[%clk 0:00:12]} 41. Rh5 {[%clk 0:01:36]}  Rxh5 {[%clk 0:00:10]} 42. gxh5 {[%clk 0:01:37]}  Kf8 {[%clk 0:00:11]} 43. h6 {[%clk 0:01:36]}  Kg8 {[%clk 0:00:11]} 44. e6 {[%clk 0:01:36]}  fxe6 {[%clk 0:00:12]} 45. fxe6 {[%clk 0:01:37]}  Nxe6 {[%clk 0:00:10]} 46. Bxe6+ {[%clk 0:01:37]}  Kh7 {[%clk 0:00:11]} 47. Bd7 {[%clk 0:01:33]}  Kxh6 {[%clk 0:00:12]} 48. Kd2 {[%clk 0:01:34]}  Kg5 {[%clk 0:00:12]} 49. Ke2 {[%clk 0:01:34]}  Kf4 {[%clk 0:00:12]} 50. Kf2 {[%clk 0:01:34]}  Ke5 {[%clk 0:00:12]} 51. Kf3 {[%clk 0:01:34]}  Kd6 {[%clk 0:00:12]} 52. Ba4 {[%clk 0:01:33]}  Ke5 {[%clk 0:00:12]} 53. Bb5 {[%clk 0:01:33]}  Kf5 {[%clk 0:00:12]} 54. Bd7+ {[%clk 0:01:32]}  Ke5 {[%clk 0:00:12]} 55. Kg4 {[%clk 0:01:32]}  Kd6 {[%clk 0:00:12]} 56. Ba4 {[%clk 0:01:27]}  Ke5 {[%clk 0:00:13]} 57. Kg5 {[%clk 0:01:26]}  Ke6 {[%clk 0:00:13]} 58. Kf4 {[%clk 0:01:25]}  Kf6 {[%clk 0:00:12]} 59. Bb5 {[%clk 0:01:21]}  Ke6 {[%clk 0:00:12]} 60. Ke4 {[%clk 0:01:21]}  Kd6 {[%clk 0:00:11]} 61. Kf5 {[%clk 0:01:21]}  Kc7 {[%clk 0:00:11]} 62. Ke5 {[%clk 0:01:21]}  Kb6 {[%clk 0:00:11]} 63. Kd6 {[%clk 0:01:21]}  a4 {[%clk 0:00:11]} 64. Bxa4 {[%clk 0:01:22]}  Ka6 {[%clk 0:00:11]} 65. Kxc5 {[%clk 0:01:22]}  Ka5 {[%clk 0:00:11]} 66. Kxd4 {[%clk 0:01:22]} 1-0


[Site "https://www.chess.com"]

[Event "Titled Tuesday Blitz January 03 Late 2023"]
[White "Prydun, Andriy"]
[Black "Winterberg, Lukas"]
[WhiteFideId "14145898"]
[BlackFideId "24622702"]
[WhiteElo "2134"]
[BlackElo "2402"]
[Result "0-1"]
[Round "05"]
[TimeControl "180+2"]
[Date "2023.01.03"]
[WhiteClock "0:00:01"]
[BlackClock "0:00:04"]

1. d4 {[%clk 0:02:58]}  g6 {[%clk 0:02:55]} 2. e4 {[%clk 0:02:57]}  c6 {[%clk 0:02:54]} 3. Ne2 {[%clk 0:02:53]}  Bg7 {[%clk 0:02:53]} 4. Ng3 {[%clk 0:02:52]}  h5 {[%clk 0:02:53]} 5. h3 {[%clk 0:02:49]}  d6 {[%clk 0:02:50]} 6. c3 {[%clk 0:02:47]}  h4 {[%clk 0:02:50]} 7. Ne2 {[%clk 0:02:46]}  b5 {[%clk 0:02:50]} 8. a4 {[%clk 0:02:44]}  a6 {[%clk 0:02:43]} 9. axb5 {[%clk 0:02:43]}  cxb5 {[%clk 0:02:44]} 10. Nd2 {[%clk 0:02:42]}  Bb7 {[%clk 0:02:44]} 11. Ng1 {[%clk 0:02:31]}  Nd7 {[%clk 0:02:34]} 12. Ngf3 {[%clk 0:02:30]}  Ngf6 {[%clk 0:02:34]} 13. Bd3 {[%clk 0:02:29]}  e6 {[%clk 0:02:33]} 14. Qe2 {[%clk 0:02:25]}  Nh5 {[%clk 0:02:33]} 15. Nf1 {[%clk 0:02:25]}  Qf6 {[%clk 0:02:26]} 16. Bg5 {[%clk 0:02:16]}  Nf4 {[%clk 0:02:26]} 17. Bxf6 {[%clk 0:02:16]}  Nxe2 {[%clk 0:02:18]} 18. Bxg7 {[%clk 0:02:15]}  Nf4 {[%clk 0:02:11]} 19. Bxh8 {[%clk 0:02:09]}  Nxd3+ {[%clk 0:02:12]} 20. Ke2 {[%clk 0:02:06]}  Nxb2 {[%clk 0:02:12]} 21. d5 {[%clk 0:01:55]}  e5 {[%clk 0:02:07]} 22. Bg7 {[%clk 0:01:53]}  f6 {[%clk 0:02:02]} 23. Nxh4 {[%clk 0:01:49]}  Kf7 {[%clk 0:01:57]} 24. Bh6 {[%clk 0:01:49]}  Rh8 {[%clk 0:01:58]} 25. Bc1 {[%clk 0:01:48]}  Na4 {[%clk 0:01:52]} 26. Rxa4 {[%clk 0:01:42]}  bxa4 {[%clk 0:01:50]} 27. Nf3 {[%clk 0:01:43]}  Nc5 {[%clk 0:01:48]} 28. N3d2 {[%clk 0:01:34]}  a5 {[%clk 0:01:37]} 29. Ba3 {[%clk 0:01:33]}  Ba6+ {[%clk 0:01:37]} 30. c4 {[%clk 0:01:32]}  Nb3 {[%clk 0:01:37]} 31. Ne3 {[%clk 0:01:31]}  Ke7 {[%clk 0:01:36]} 32. Nxb3 {[%clk 0:01:10]}  axb3 {[%clk 0:01:37]} 33. Kd3 {[%clk 0:01:10]}  Rb8 {[%clk 0:01:24]} 34. Rb1 {[%clk 0:01:08]}  a4 {[%clk 0:01:24]} 35. Kc3 {[%clk 0:01:07]}  Bc8 {[%clk 0:01:19]} 36. h4 {[%clk 0:01:06]}  f5 {[%clk 0:01:19]} 37. g3 {[%clk 0:01:02]}  Bd7 {[%clk 0:01:10]} 38. exf5 {[%clk 0:00:57]}  gxf5 {[%clk 0:01:10]} 39. c5 {[%clk 0:00:56]}  dxc5 {[%clk 0:01:07]} 40. Nc4 {[%clk 0:00:56]}  Kf6 {[%clk 0:01:04]} 41. f4 {[%clk 0:00:36]}  exf4 {[%clk 0:00:51]} 42. gxf4 {[%clk 0:00:36]}  Rg8 {[%clk 0:00:49]} 43. Bxc5 {[%clk 0:00:35]}  Rg3+ {[%clk 0:00:47]} 44. Kb4 {[%clk 0:00:34]}  Rd3 {[%clk 0:00:38]} 45. Ne5 {[%clk 0:00:32]}  Rxd5 {[%clk 0:00:38]} 46. Kc4 {[%clk 0:00:28]}  Be6 {[%clk 0:00:36]} 47. Bd4 {[%clk 0:00:27]}  Ke7 {[%clk 0:00:30]} 48. Bc5+ {[%clk 0:00:18]}  Kf6 {[%clk 0:00:28]} 49. Kb4 {[%clk 0:00:16]}  a3 {[%clk 0:00:17]} 50. Kxb3 {[%clk 0:00:02]}  Rxc5+ {[%clk 0:00:05]} 51. Kxa3 {[%clk 0:00:03]}  Rc3+ {[%clk 0:00:04]} 52. Kb2 {[%clk 0:00:01]}  Rh3 {[%clk 0:00:05]} 53. Nc6 {[%clk 0:00:01]}  Rxh4 {[%clk 0:00:05]} 54. Rf1 {[%clk 0:00:02]}  Bd5 {[%clk 0:00:05]} 55. Nb4 {[%clk 0:00:01]}  Bg2 {[%clk 0:00:05]} 56. Rf2 {[%clk 0:00:01]}  Be4 {[%clk 0:00:06]} 57. Nc2 {[%clk 0:00:01]}  Bxc2 {[%clk 0:00:04]} 58. Kxc2 {[%clk 0:00:01]}  Rh3 {[%clk 0:00:05]} 59. Kd2 {[%clk 0:00:02]}  Kg6 {[%clk 0:00:06]} 60. Ke2 {[%clk 0:00:03]}  Kh5 {[%clk 0:00:07]} 61. Kf1 {[%clk 0:00:03]}  Kg4 {[%clk 0:00:07]} 62. Kg2 {[%clk 0:00:03]}  Rc3 {[%clk 0:00:06]} 63. Rf1 {[%clk 0:00:04]}  Rg3+ {[%clk 0:00:06]} 64. Kh2 {[%clk 0:00:04]}  Rh3+ {[%clk 0:00:05]} 65. Kg2 {[%clk 0:00:04]}  Rc3 {[%clk 0:00:06]} 66. Rf2 {[%clk 0:00:03]}  Rc1 {[%clk 0:00:06]} 67. Rd2 {[%clk 0:00:02]}  Kxf4 {[%clk 0:00:05]} 68. Rd8 {[%clk 0:00:02]}  Rc2+ {[%clk 0:00:04]} 69. Kg1 {[%clk 0:00:02]}  Kf3 {[%clk 0:00:01]} 70. Rf8 {[%clk 0:00:03]}  Kg4 {[%clk 0:00:02]} 71. Rg8+ {[%clk 0:00:02]}  Kf4 {[%clk 0:00:03]} 72. Rf8 {[%clk 0:00:03]}  Rd2 {[%clk 0:00:03]} 73. Rg8 {[%clk 0:00:03]}  Kf3 {[%clk 0:00:03]} 74. Rf8 {[%clk 0:00:04]}  f4 {[%clk 0:00:04]} 75. Rf7 {[%clk 0:00:04]}  Rd1+ {[%clk 0:00:04]} 76. Kh2 {[%clk 0:00:04]}  Ke3 {[%clk 0:00:05]} 77. Rf8 {[%clk 0:00:02]}  f3 {[%clk 0:00:05]} 78. Kg3 {[%clk 0:00:02]}  Rg1+ {[%clk 0:00:05]} 79. Kh2 {[%clk 0:00:02]}  Rg7 {[%clk 0:00:04]} 80. Rf6 {[%clk 0:00:02]}  Ke2 {[%clk 0:00:04]} 81. Kh1 {[%clk 0:00:01]}  Rg5 {[%clk 0:00:04]} 82. Rf7 {[%clk 0:00:01]}  f2 {[%clk 0:00:04]} 0-1


[Site "https://www.chess.com"]

[Event "Titled Tuesday Blitz January 03 Late 2023"]
[White "Kuegel, Tobias"]
[Black "Lacasa Diaz, Jose Antonio"]
[WhiteFideId "4636295"]
[BlackFideId "2203375"]
[WhiteElo "2332"]
[BlackElo "2359"]
[Result "1/2-1/2"]
[Round "05"]
[TimeControl "180+2"]
[Date "2023.01.03"]
[WhiteClock "0:00:05"]
[BlackClock "0:00:17"]

1. e4 {[%clk 0:03:00]}  c5 {[%clk 0:02:58]} 2. Nf3 {[%clk 0:03:00]}  g6 {[%clk 0:02:57]} 3. c4 {[%clk 0:03:00]}  Nc6 {[%clk 0:02:56]} 4. d4 {[%clk 0:03:00]}  cxd4 {[%clk 0:02:57]} 5. Nxd4 {[%clk 0:03:00]}  Nf6 {[%clk 0:02:57]} 6. Nc3 {[%clk 0:03:00]}  Nxd4 {[%clk 0:02:58]} 7. Qxd4 {[%clk 0:03:00]}  d6 {[%clk 0:02:59]} 8. Be2 {[%clk 0:02:57]}  Bg7 {[%clk 0:03:00]} 9. Be3 {[%clk 0:02:56]}  O-O {[%clk 0:03:00]} 10. Qd2 {[%clk 0:02:57]}  a5 {[%clk 0:03:01]} 11. O-O {[%clk 0:02:50]}  a4 {[%clk 0:03:01]} 12. f3 {[%clk 0:02:46]}  Qa5 {[%clk 0:03:01]} 13. Rac1 {[%clk 0:02:38]}  Be6 {[%clk 0:03:00]} 14. Nd5 {[%clk 0:02:21]}  Bxd5 {[%clk 0:02:42]} 15. Qxa5 {[%clk 0:02:16]}  Rxa5 {[%clk 0:02:43]} 16. cxd5 {[%clk 0:02:15]}  Nd7 {[%clk 0:02:32]} 17. Rc7 {[%clk 0:02:03]}  Nc5 {[%clk 0:02:31]} 18. b4 {[%clk 0:01:42]}  axb3 {[%clk 0:02:27]} 19. axb3 {[%clk 0:01:42]}  Nxb3 {[%clk 0:02:17]} 20. Rxe7 {[%clk 0:00:52]}  Nd4 {[%clk 0:02:07]} 21. Re1 {[%clk 0:00:42]}  b5 {[%clk 0:01:54]} 22. Bf4 {[%clk 0:00:30]}  Nxe2+ {[%clk 0:01:29]} 23. Rxe2 {[%clk 0:00:30]}  Bd4+ {[%clk 0:01:29]} 24. Be3 {[%clk 0:00:21]}  Bxe3+ {[%clk 0:01:25]} 25. Rxe3 {[%clk 0:00:22]}  Rb8 {[%clk 0:01:24]} 26. Rb3 {[%clk 0:00:13]}  b4 {[%clk 0:01:21]} 27. Rc7 {[%clk 0:00:12]}  Ra6 {[%clk 0:01:10]} 28. Rc6 {[%clk 0:00:11]}  Rxc6 {[%clk 0:01:06]} 29. dxc6 {[%clk 0:00:12]}  Rc8 {[%clk 0:01:07]} 30. Rxb4 {[%clk 0:00:12]}  Rxc6 {[%clk 0:01:08]} 31. Kf2 {[%clk 0:00:12]}  Kg7 {[%clk 0:01:08]} 32. Rb7 {[%clk 0:00:12]}  Kf6 {[%clk 0:01:08]} 33. Rd7 {[%clk 0:00:11]}  Ke6 {[%clk 0:01:08]} 34. Rd8 {[%clk 0:00:11]}  h5 {[%clk 0:01:08]} 35. h4 {[%clk 0:00:11]}  Rc2+ {[%clk 0:01:06]} 36. Kg3 {[%clk 0:00:12]}  Rd2 {[%clk 0:01:05]} 37. Re8+ {[%clk 0:00:12]}  Kf6 {[%clk 0:01:05]} 38. Ra8 {[%clk 0:00:12]}  d5 {[%clk 0:00:58]} 39. Rd8 {[%clk 0:00:08]}  d4 {[%clk 0:00:56]} 40. Rd5 {[%clk 0:00:08]}  Ke6 {[%clk 0:00:56]} 41. Kh3 {[%clk 0:00:08]}  d3 {[%clk 0:00:55]} 42. g4 {[%clk 0:00:06]}  Rd1 {[%clk 0:00:49]} 43. gxh5 {[%clk 0:00:05]}  gxh5 {[%clk 0:00:48]} 44. Kg2 {[%clk 0:00:05]}  d2 {[%clk 0:00:43]} 45. Kf2 {[%clk 0:00:05]}  Rh1 {[%clk 0:00:34]} 46. Rxd2 {[%clk 0:00:05]}  Rxh4 {[%clk 0:00:34]} 47. Kg3 {[%clk 0:00:05]}  Rh1 {[%clk 0:00:34]} 48. Rd5 {[%clk 0:00:04]}  h4+ {[%clk 0:00:25]} 49. Kf4 {[%clk 0:00:02]}  h3 {[%clk 0:00:19]} 50. Rh5 {[%clk 0:00:02]}  h2 {[%clk 0:00:20]} 51. Kg3 {[%clk 0:00:02]}  Rg1+ {[%clk 0:00:19]} 52. Kxh2 {[%clk 0:00:02]}  Rg8 {[%clk 0:00:17]} 53. Rh3 {[%clk 0:00:02]}  Ke5 {[%clk 0:00:17]} 54. Rg3 {[%clk 0:00:02]}  Rh8+ {[%clk 0:00:17]} 55. Kg2 {[%clk 0:00:02]}  Kf4 {[%clk 0:00:17]} 56. Rg4+ {[%clk 0:00:01]}  Ke3 {[%clk 0:00:17]} 57. Kg3 {[%clk 0:00:02]}  Rh1 {[%clk 0:00:17]} 58. Rh4 {[%clk 0:00:01]}  Rg1+ {[%clk 0:00:17]} 59. Kh3 {[%clk 0:00:02]}  Rh1+ {[%clk 0:00:16]} 60. Kg3 {[%clk 0:00:02]}  Rxh4 {[%clk 0:00:17]} 61. Kxh4 {[%clk 0:00:02]}  Kxf3 {[%clk 0:00:18]} 62. Kg5 {[%clk 0:00:03]}  Kxe4 {[%clk 0:00:18]} 63. Kf6 {[%clk 0:00:04]}  Kd5 {[%clk 0:00:17]} 64. Kxf7 {[%clk 0:00:05]} 1/2-1/2


[Site "https://www.chess.com"]

[Event "Titled Tuesday Blitz January 03 Late 2023"]
[White "Zampronha, Wladimir Camilo"]
[Black "Ansh M Shah"]
[WhiteFideId "2103087"]
[BlackFideId "25033379"]
[WhiteElo "2176"]
[BlackElo "2171"]
[Result "0-1"]
[Round "05"]
[TimeControl "180+2"]
[Date "2023.01.03"]
[WhiteClock "0:00:01"]
[BlackClock "0:00:03"]

1. e4 {[%clk 0:02:56]}  c6 {[%clk 0:02:58]} 2. d4 {[%clk 0:02:55]}  d5 {[%clk 0:02:58]} 3. e5 {[%clk 0:02:56]}  Bf5 {[%clk 0:02:58]} 4. Nf3 {[%clk 0:02:56]}  e6 {[%clk 0:02:59]} 5. Be2 {[%clk 0:02:55]}  Nd7 {[%clk 0:02:59]} 6. O-O {[%clk 0:02:55]}  Ne7 {[%clk 0:02:59]} 7. Nh4 {[%clk 0:02:53]}  Bg6 {[%clk 0:02:56]} 8. Nd2 {[%clk 0:02:51]}  Nf5 {[%clk 0:02:56]} 9. Nxg6 {[%clk 0:02:49]}  hxg6 {[%clk 0:02:57]} 10. Nf3 {[%clk 0:02:49]}  Nh4 {[%clk 0:02:55]} 11. g3 {[%clk 0:02:44]}  Nf5 {[%clk 0:02:50]} 12. c4 {[%clk 0:02:29]}  dxc4 {[%clk 0:02:45]} 13. Bxc4 {[%clk 0:02:30]}  Nb6 {[%clk 0:02:45]} 14. Bb3 {[%clk 0:02:28]}  Be7 {[%clk 0:02:42]} 15. Qd3 {[%clk 0:02:21]}  Nd5 {[%clk 0:02:30]} 16. Bd2 {[%clk 0:02:19]}  g5 {[%clk 0:02:05]} 17. Rfd1 {[%clk 0:02:12]}  g4 {[%clk 0:02:03]} 18. Ne1 {[%clk 0:02:12]}  Bg5 {[%clk 0:02:03]} 19. Nc2 {[%clk 0:02:07]}  Qe7 {[%clk 0:01:21]} 20. a4 {[%clk 0:02:04]}  O-O-O {[%clk 0:01:11]} 21. a5 {[%clk 0:02:04]}  a6 {[%clk 0:00:55]} 22. Bc4 {[%clk 0:01:59]}  Bxd2 {[%clk 0:00:42]} 23. Qxd2 {[%clk 0:01:57]}  Rh3 {[%clk 0:00:28]} 24. Bf1 {[%clk 0:01:57]}  Rh5 {[%clk 0:00:25]} 25. Be2 {[%clk 0:01:44]}  Rdh8 {[%clk 0:00:10]} 26. Bxg4 {[%clk 0:01:44]}  Rxh2 {[%clk 0:00:09]} 27. Bf3 {[%clk 0:01:45]}  R8h6 {[%clk 0:00:05]} 28. Bg2 {[%clk 0:01:39]}  Qf8 {[%clk 0:00:03]} 29. Qe2 {[%clk 0:01:18]}  Qh8 {[%clk 0:00:03]} 30. Qf3 {[%clk 0:01:18]}  Nfe7 {[%clk 0:00:03]} 31. Ne1 {[%clk 0:01:10]}  R2h5 {[%clk 0:00:01]} 32. Rac1 {[%clk 0:00:55]}  Rf5 {[%clk 0:00:02]} 33. Qa3 {[%clk 0:00:52]}  Kb8 {[%clk 0:00:03]} 34. Nf3 {[%clk 0:00:44]}  Rfh5 {[%clk 0:00:02]} 35. Kf1 {[%clk 0:00:36]}  Rh2 {[%clk 0:00:02]} 36. Qd3 {[%clk 0:00:22]}  R2h5 {[%clk 0:00:01]} 37. Rb1 {[%clk 0:00:20]}  Qe8 {[%clk 0:00:01]} 38. b4 {[%clk 0:00:20]}  Nc7 {[%clk 0:00:01]} 39. Qe4 {[%clk 0:00:18]}  Ned5 {[%clk 0:00:01]} 40. Qd3 {[%clk 0:00:17]}  Nb5 {[%clk 0:00:02]} 41. Rdc1 {[%clk 0:00:13]}  Rf5 {[%clk 0:00:02]} 42. Rc5 {[%clk 0:00:12]}  Qd7 {[%clk 0:00:02]} 43. Rd1 {[%clk 0:00:09]}  Rh8 {[%clk 0:00:03]} 44. Ng1 {[%clk 0:00:09]}  Rd8 {[%clk 0:00:03]} 45. Nf3 {[%clk 0:00:09]}  Rh5 {[%clk 0:00:04]} 46. Kg1 {[%clk 0:00:10]}  Rhh8 {[%clk 0:00:04]} 47. Kf1 {[%clk 0:00:10]}  Rh6 {[%clk 0:00:05]} 48. Kg1 {[%clk 0:00:10]}  f6 {[%clk 0:00:06]} 49. exf6 {[%clk 0:00:10]}  gxf6 {[%clk 0:00:07]} 50. Qe4 {[%clk 0:00:09]}  Rh5 {[%clk 0:00:06]} 51. Re1 {[%clk 0:00:09]}  Nbc7 {[%clk 0:00:07]} 52. Rcc1 {[%clk 0:00:08]}  Rf5 {[%clk 0:00:07]} 53. Rcd1 {[%clk 0:00:08]}  Rh5 {[%clk 0:00:07]} 54. Nh4 {[%clk 0:00:08]}  Rh6 {[%clk 0:00:07]} 55. Nf3 {[%clk 0:00:07]}  Rdh8 {[%clk 0:00:06]} 56. Nh4 {[%clk 0:00:06]}  Nxb4 {[%clk 0:00:06]} 57. Rb1 {[%clk 0:00:05]}  Nbd5 {[%clk 0:00:06]} 58. Nf3 {[%clk 0:00:04]}  Nc3 {[%clk 0:00:06]} 59. Qc2 {[%clk 0:00:03]}  Nxb1 {[%clk 0:00:06]} 60. Rxb1 {[%clk 0:00:04]}  Nd5 {[%clk 0:00:06]} 61. Qe2 {[%clk 0:00:04]}  Re8 {[%clk 0:00:06]} 62. Qxa6 {[%clk 0:00:03]}  Rh7 {[%clk 0:00:04]} 63. Qe2 {[%clk 0:00:02]}  e5 {[%clk 0:00:04]} 64. a6 {[%clk 0:00:01]}  exd4 {[%clk 0:00:03]} 0-1


[Site "https://www.chess.com"]

[Event "Titled Tuesday Blitz January 03 Late 2023"]
[White "Melikhov, Evgeny V."]
[Black "Weetik, Vjacheslav"]
[WhiteFideId "4122046"]
[BlackFideId "4153472"]
[WhiteElo "2269"]
[BlackElo "2423"]
[Result "0-1"]
[Round "05"]
[TimeControl "180+2"]
[Date "2023.01.03"]
[WhiteClock "0:00:19"]
[BlackClock "0:00:20"]

1. d4 {[%clk 0:03:00]}  Nf6 {[%clk 0:02:58]} 2. c4 {[%clk 0:03:01]}  g6 {[%clk 0:02:58]} 3. Nc3 {[%clk 0:03:01]}  Bg7 {[%clk 0:02:59]} 4. e4 {[%clk 0:03:01]}  d6 {[%clk 0:02:59]} 5. f3 {[%clk 0:03:01]}  O-O {[%clk 0:02:59]} 6. Be3 {[%clk 0:03:02]}  c5 {[%clk 0:02:58]} 7. Nge2 {[%clk 0:03:01]}  Nc6 {[%clk 0:02:58]} 8. d5 {[%clk 0:03:01]}  Ne5 {[%clk 0:02:58]} 9. Ng3 {[%clk 0:03:01]}  e6 {[%clk 0:02:58]} 10. Be2 {[%clk 0:02:55]}  exd5 {[%clk 0:02:58]} 11. cxd5 {[%clk 0:02:55]}  a6 {[%clk 0:02:58]} 12. a4 {[%clk 0:02:54]}  h5 {[%clk 0:02:57]} 13. O-O {[%clk 0:02:53]}  Nh7 {[%clk 0:02:56]} 14. h3 {[%clk 0:02:47]}  h4 {[%clk 0:02:53]} 15. Nh1 {[%clk 0:02:47]}  f5 {[%clk 0:02:53]} 16. f4 {[%clk 0:02:40]}  Nf7 {[%clk 0:02:52]} 17. Nf2 {[%clk 0:02:38]}  Nf6 {[%clk 0:02:49]} 18. e5 {[%clk 0:02:21]}  dxe5 {[%clk 0:02:48]} 19. Bxc5 {[%clk 0:02:21]}  exf4 {[%clk 0:02:27]} 20. Bxf8 {[%clk 0:02:18]}  Qxf8 {[%clk 0:02:26]} 21. Nd3 {[%clk 0:02:00]}  g5 {[%clk 0:02:25]} 22. Qb3 {[%clk 0:01:45]}  Nd6 {[%clk 0:02:11]} 23. Nc5 {[%clk 0:01:35]}  Nfe4 {[%clk 0:02:08]} 24. Ne6 {[%clk 0:01:32]}  Qe7 {[%clk 0:01:42]} 25. Nxg7 {[%clk 0:01:19]}  Qxg7 {[%clk 0:01:41]} 26. Nxe4 {[%clk 0:01:19]}  fxe4 {[%clk 0:01:38]} 27. Bg4 {[%clk 0:01:16]}  Bxg4 {[%clk 0:01:35]} 28. hxg4 {[%clk 0:01:16]}  e3 {[%clk 0:01:28]} 29. Qd3 {[%clk 0:01:10]}  Re8 {[%clk 0:01:24]} 30. Rfe1 {[%clk 0:01:07]}  h3 {[%clk 0:01:19]} 31. Rac1 {[%clk 0:01:03]}  Ne4 {[%clk 0:01:11]} 32. gxh3 {[%clk 0:00:48]}  Nf2 {[%clk 0:01:08]} 33. Qf5 {[%clk 0:00:42]}  Qh6 {[%clk 0:00:40]} 34. Rc7 {[%clk 0:00:36]}  Rf8 {[%clk 0:00:30]} 35. Qe6+ {[%clk 0:00:35]}  Qxe6 {[%clk 0:00:30]} 36. dxe6 {[%clk 0:00:35]}  Nxh3+ {[%clk 0:00:27]} 37. Kg2 {[%clk 0:00:27]}  f3+ {[%clk 0:00:25]} 38. Kxh3 {[%clk 0:00:27]}  f2 {[%clk 0:00:25]} 39. Rf1 {[%clk 0:00:20]}  e2 {[%clk 0:00:25]} 40. Rcc1 {[%clk 0:00:19]}  Rf4 {[%clk 0:00:16]} 41. Kg2 {[%clk 0:00:18]}  exf1=Q+ {[%clk 0:00:16]} 42. Rxf1 {[%clk 0:00:18]}  Rxg4+ {[%clk 0:00:15]} 43. Kxf2 {[%clk 0:00:17]}  Rf4+ {[%clk 0:00:16]} 44. Ke2 {[%clk 0:00:18]}  Rxf1 {[%clk 0:00:16]} 45. Kxf1 {[%clk 0:00:18]}  Kf8 {[%clk 0:00:17]} 46. Kf2 {[%clk 0:00:18]}  Ke7 {[%clk 0:00:17]} 47. Kf3 {[%clk 0:00:18]}  Kxe6 {[%clk 0:00:17]} 48. Kg4 {[%clk 0:00:18]}  Kd5 {[%clk 0:00:18]} 49. Kxg5 {[%clk 0:00:19]}  Kc4 {[%clk 0:00:18]} 50. Kf4 {[%clk 0:00:19]}  Kb3 {[%clk 0:00:19]} 51. a5 {[%clk 0:00:19]}  Kxb2 {[%clk 0:00:19]} 52. Ke5 {[%clk 0:00:19]}  Kb3 {[%clk 0:00:20]} 53. Kd5 {[%clk 0:00:19]}  Kb4 {[%clk 0:00:20]} 0-1


[Site "https://www.chess.com"]

[Event "Titled Tuesday Blitz January 03 Late 2023"]
[White "Yurovskykh, Oleksandr"]
[Black "Jorajuria Mendoza, Algol"]
[WhiteFideId "14134020"]
[BlackFideId "5128897"]
[WhiteElo "2328"]
[BlackElo "2069"]
[Result "1-0"]
[Round "05"]
[TimeControl "180+2"]
[Date "2023.01.03"]
[WhiteClock "0:00:14"]
[BlackClock "0:00:06"]

1. d4 {[%clk 0:02:56]}  d5 {[%clk 0:02:57]} 2. Bf4 {[%clk 0:02:54]}  c5 {[%clk 0:02:56]} 3. e3 {[%clk 0:02:51]}  Nc6 {[%clk 0:02:55]} 4. c3 {[%clk 0:02:50]}  Nf6 {[%clk 0:02:55]} 5. Nd2 {[%clk 0:02:48]}  Bf5 {[%clk 0:02:55]} 6. Ngf3 {[%clk 0:02:47]}  Qb6 {[%clk 0:02:55]} 7. Qb3 {[%clk 0:02:46]}  c4 {[%clk 0:02:56]} 8. Qxb6 {[%clk 0:02:43]}  axb6 {[%clk 0:02:56]} 9. a3 {[%clk 0:02:43]}  b5 {[%clk 0:02:56]} 10. Rc1 {[%clk 0:02:43]}  e6 {[%clk 0:02:53]} 11. Nh4 {[%clk 0:02:39]}  Be4 {[%clk 0:02:38]} 12. f3 {[%clk 0:02:24]}  Bg6 {[%clk 0:02:27]} 13. Nxg6 {[%clk 0:02:23]}  hxg6 {[%clk 0:02:28]} 14. Bg3 {[%clk 0:01:55]}  Nh5 {[%clk 0:02:22]} 15. Bf2 {[%clk 0:01:54]}  Bd6 {[%clk 0:02:23]} 16. f4 {[%clk 0:01:05]}  g5 {[%clk 0:02:03]} 17. g3 {[%clk 0:00:45]}  gxf4 {[%clk 0:01:56]} 18. exf4 {[%clk 0:00:46]}  Nf6 {[%clk 0:01:42]} 19. Be2 {[%clk 0:00:38]}  Nd7 {[%clk 0:01:42]} 20. Nf3 {[%clk 0:00:19]}  Nb6 {[%clk 0:01:40]} 21. Kd2 {[%clk 0:00:19]}  Na4 {[%clk 0:01:40]} 22. Rb1 {[%clk 0:00:20]}  O-O-O {[%clk 0:01:23]} 23. Bd1 {[%clk 0:00:20]}  Kc7 {[%clk 0:01:16]} 24. Bc2 {[%clk 0:00:20]}  Ne7 {[%clk 0:01:04]} 25. Ne5 {[%clk 0:00:19]}  Rdf8 {[%clk 0:00:59]} 26. Bxa4 {[%clk 0:00:18]}  bxa4 {[%clk 0:00:59]} 27. Rbe1 {[%clk 0:00:19]}  Bxe5 {[%clk 0:00:56]} 28. dxe5 {[%clk 0:00:20]}  Nc6 {[%clk 0:00:52]} 29. Bc5 {[%clk 0:00:20]}  Rd8 {[%clk 0:00:53]} 30. Bd6+ {[%clk 0:00:20]}  Kb6 {[%clk 0:00:48]} 31. Ke3 {[%clk 0:00:20]}  Na5 {[%clk 0:00:31]} 32. h4 {[%clk 0:00:19]}  Kc6 {[%clk 0:00:31]} 33. h5 {[%clk 0:00:17]}  b6 {[%clk 0:00:24]} 34. g4 {[%clk 0:00:16]}  Nb3 {[%clk 0:00:24]} 35. g5 {[%clk 0:00:14]}  Rxd6 {[%clk 0:00:22]} 36. exd6 {[%clk 0:00:14]}  Kxd6 {[%clk 0:00:23]} 37. h6 {[%clk 0:00:14]}  gxh6 {[%clk 0:00:22]} 38. gxh6 {[%clk 0:00:15]}  Nc5 {[%clk 0:00:19]} 39. Reg1 {[%clk 0:00:15]}  Ne4 {[%clk 0:00:16]} 40. Rg7 {[%clk 0:00:15]}  Ke7 {[%clk 0:00:14]} 41. h7 {[%clk 0:00:14]}  Kf8 {[%clk 0:00:14]} 42. Rhg1 {[%clk 0:00:14]}  Nf6 {[%clk 0:00:13]} 43. Kd4 {[%clk 0:00:14]}  Nxh7 {[%clk 0:00:10]} 44. Ke5 {[%clk 0:00:14]}  Ke7 {[%clk 0:00:06]} 45. Rh1 {[%clk 0:00:14]} 1-0


[Site "https://www.chess.com"]